Workbook

Sheet Intro
A5: Sådan udfylder du de efterfølgende ark
A7: Kopier arket "Blank", og udfyld for din ejendom om du ud fra hvert spørgsmål ligger i rød, gul eller grøn kategori.
A8: Får du "Rød" opnår du 10 point. Får du "Gul" opnår du 5 point. Får du "Grøn" opnår du 0 point.
A9: Herefter lægges pointene sammen inden for hver kategori og der ganges med vægtningsfaktoren.
A10: Dette udføres for alle 3 kategorier og summeres op i "forbedringspotentialet" i bunden af arket.
A11: Der er vedlagt eksempler for ejendomme som er undersøgt i forbindelse med projektet.

Sheet Blank
C1: "Tipskupon" for skrivebordsskreening af ejendom
C3: Gennemgang af PKA erhvervsejendomme
C4: Ejendomsnummer
C5: Adresse
G7: Faktisk
A8: Kategori | B8: Vægtning | C8: Er der potentiale i at energi- og indeklimaskreene denne ejendom | D8: Point
B9: (%) | D9: 10 | E9: 5 | F9: 0
A10: Basis | B10: 50 | C10: Størrelse (m2) | D10: >10.000 | E10: >5-10.000> | F10: <5.000
C11: Bygningsalder (år) | D11: > 30 | E11: > 10-30 > | F11: < 10
C12: Opvarmningsform | D12: El | E12: gas/olie | F12: Fjernvarme
C13: Antal lejere i bygning | D13: 1 | E13: 2-3 | F13: >3
C14: Husleje (kr./m2) | D14: <750 | E14: <750-1200< | F14: >1200
C15: Tomgang (% ikke udlejet) | D15: >25 | E15: 5-25 | F15: <5
C16: D&V budget (gennemsnitlig årlig kr./m2) | D16: >150 | E16: 50-150 | F16: <50
C17: Restløbetid af lejekontrakt (år) | D17: < 5 | E17: > 5-10 > | F17: > 10
A18: Energi | B18: 25 | C18: Målt forbrug, varme (kWh/m2) | D18: >200 | E18: >100-200> | F18: <100
C19: Energimærkestatus | D19: E-H | E19: C-D | F19: A-B
C20: Energiomkostninger (kr./m2) | D20: > 150 | E20: > 75-150 > | F20: < 75
C21: Faktisk forbrug >< Energimærke (faktor) | D21: >1,3 | E21: 1-1,3 | F21: <1
A22: Indeklima | B22: 25 | C22: Indeklima installationer | D22: naturlig | E22: CAV | F22: klimaanlæg
C23: Central styring | D23: intet | E23: PLC | F23: CTS
C24: Indeklimaklager (DC/vicevært) | D24: mange | E24: nogle | F24: få
C25: Brugerafhjælpning | D25: ingen | E25: afskærmning | F25: temperatur
C28: Forbedringspotentialet | E28: %

Sheet 11-220
C1: "Tipskupon" for skrivebordsskreening af ejendom
C3: Gennemgang af PKA erhvervsejendomme
C4: Ejendomsnummer | D4: 11-220
C5: Adresse | D5: Ejby Industrivej 60-66, 2600 Glostrup
C6: DC | D6: Jack Hansen
G7: Faktisk
B8: Vægtning | C8: Er der potentiale i at energi- og indeklimaskreene denne ejendom | D8: Point
B9: (%) | D9: 10 | E9: 5 | F9: 0
A10: Basis | B10: 50 | C10: Størrelse (m2) | D10: >10.000 | E10: >5-10.000> | F10: <5.000 | G10: 3652
C11: Bygningsalder (år) | D11: > 30 | E11: > 10-30 > | F11: < 10 | G11: 31
C12: Opvarmningsform | D12: El | E12: gas/olie | F12: Fjernvarme | G12: Fjernvarme
C13: Antal lejere i bygning | D13: 1 | E13: 2-3 | F13: >3 | G13: 3
C14: Husleje (kr./m2) | D14: <750 | E14: <750-1200< | F14: >1200 | G14: 946
C15: Tomgang (% ikke udlejet) | D15: >25 | E15: 5-25 | F15: <5 | G15: 2.5
C16: D&V budget (gennemsnitlig årlig kr./m2) | D16: >150 | E16: 50-150 | F16: <50 | G16: 36
C17: Restløbetid af lejekontrakt (år) | D17: < 5 | E17: > 5-10 > | F17: > 10 | G17: 1
A18: Energi | B18: 25 | C18: Målt forbrug, varme (kWh/m2) | D18: >200 | E18: >100-200> | F18: <100 | G18: 76
C19: Energimærkestatus | D19: E-H | E19: C-D | F19: A-B | G19: -
C20: Energiomkostninger (kr./m2) | D20: > 150 | E20: > 75-150 > | F20: < 75 | G20: 40
C21: Faktisk forbrug >< Energimærke (faktor) | D21: >1,3 | E21: 1-1,3 | F21: <1 | G21: -
A22: Indeklima | B22: 25 | C22: Indeklima installationer | D22: naturlig | E22: CAV | F22: klimaanlæg | G22: CAV
C23: Central styring | D23: intet | E23: PLC | F23: CTS | G23: -
C24: Indeklimaklager (DC/vicevært) | D24: mange | E24: nogle | F24: få | G24: nogle
C25: Brugerafhjælpning | D25: ingen | E25: afskærmning | F25: temperatur | G25: afskærmning
C28: Forbedringspotentialet | D28: =50*25/80+15*25/40 -> 25 | E28: %
A32: Note: | C32: Har ikke et energimærke idet ejendom benyttes til industri.

Sheet 11-382
C1: "Tipskupon" for skrivebordsskreening af ejendom
C3: Gennemgang af PKA erhvervsejendomme
C4: Ejendomsnummer | D4: 11-382
C5: Adresse | D5: Taastrup Hovedgade 101, 2630 Tåstrup
C6: DC | D6: Kenneth Johansen
G7: Faktisk
B8: Vægtning | C8: Er der potentiale i at energi- og indeklimaskreene denne ejendom | D8: Point
B9: (%) | D9: 10 | E9: 5 | F9: 0
A10: Basis | B10: 50 | C10: Størrelse (m2) | D10: >10.000 | E10: >5-10.000> | F10: <5.000 | G10: 1593
C11: Bygningsalder (år) | D11: > 30 | E11: > 10-30 > | F11: < 10 | G11: 43
C12: Opvarmningsform | D12: El | E12: gas/olie | F12: Fjernvarme | G12: fjernvarme
C13: Antal lejere i bygning | D13: 1 | E13: 2-3 | F13: >3 | G13: 6
C14: Husleje (kr./m2) | D14: <750 | E14: <750-1200< | F14: >1200 | G14: 1001
C15: Tomgang (% ikke udlejet) | D15: >25 | E15: 5-25 | F15: <5 | G15: 17
C16: D&V budget (gennemsnitlig årlig kr./m2) | D16: >150 | E16: 50-150 | F16: <50 | G16: 112
C17: Restløbetid af lejekontrakt (år) | D17: < 5 | E17: > 5-10 > | F17: > 10 | G17: 1
A18: Energi | B18: 25 | C18: Målt forbrug, varme (kWh/m2) | D18: >200 | E18: >100-200> | F18: <100 | G18: 162
C19: Energimærkestatus | D19: E-H | E19: C-D | F19: A-B | G19: E
C20: Energiomkostninger (kr./m2) | D20: > 150 | E20: > 75-150 > | F20: < 75 | G20: 174
C21: Faktisk forbrug >< Energimærke (faktor) | D21: >1,3 | E21: 1-1,3 | F21: <1 | G21: 2
A22: Indeklima | B22: 25 | C22: Indeklima installationer | D22: naturlig | E22: CAV | F22: klimaanlæg | G22: CAV
C23: Central styring | D23: intet | E23: PLC | F23: CTS | G23: PLC
C24: Indeklimaklager (DC/vicevært) | D24: mange | E24: nogle | F24: få | G24: få
C25: Brugerafhjælpning | D25: ingen | E25: afskærmning | F25: temperatur | G25: afskærmning
C28: Forbedringspotentialet | D28: =50*35/80+25*35/40+15*25/40 -> 53.125 | E28: %

Sheet 11-362
C1: "Tipskupon" for skrivebordsskreening af ejendom
C3: Gennemgang af PKA erhvervsejendomme
C4: Ejendomsnummer | D4: 11-362
C5: Adresse | D5: Vibeholmsvej 17, 2605 Brøndby
C6: DC | D6: Carsten Jensen
G7: Faktisk
B8: Vægtning | C8: Er der potentiale i at energi- og indeklimaskreene denne ejendom | D8: Point
B9: (%) | D9: 10 | E9: 5 | F9: 0
A10: Basis | B10: 50 | C10: Størrelse (m2) | D10: >10.000 | E10: >5-10.000> | F10: <5.000 | G10: 2922
C11: Bygningsalder (år) | D11: > 30 | E11: > 10-30 > | F11: < 10 | G11: 30
C12: Opvarmningsform | D12: El | E12: gas/olie | F12: Fjernvarme | G12: gas
C13: Antal lejere i bygning | D13: 1 | E13: 2-3 | F13: >3 | G13: 3
C14: Husleje (kr./m2) | D14: <750 | E14: <750-1200< | F14: >1200 | G14: 1215
C15: Tomgang (% ikke udlejet) | D15: >25 | E15: 5-25 | F15: <5 | G15: 0
C16: D&V budget (gennemsnitlig årlig kr./m2) | D16: >150 | E16: 50-150 | F16: <50 | G16: 47
C17: Restløbetid af lejekontrakt (år) | D17: < 5 | E17: > 5-10 > | F17: > 10 | G17: 1
A18: Energi | B18: 25 | C18: Målt forbrug, varme (kWh/m2) | D18: >200 | E18: >100-200> | F18: <100 | G18: 162
C19: Energimærkestatus | D19: E-H | E19: C-D | F19: A-B | G19: E
C20: Energiomkostninger (kr./m2) | D20: > 150 | E20: > 75-150 > | F20: < 75 | G20: 100
C21: Faktisk forbrug >< Energimærke (faktor) | D21: >1,3 | E21: 1-1,3 | F21: <1 | G21: 1.4
A22: Indeklima | B22: 25 | C22: Indeklima installationer | D22: naturlig | E22: CAV | F22: klimaanlæg | G22: CAV
C23: Central styring | D23: intet | E23: PLC | F23: CTS | G23: CTS
C24: Indeklimaklager (DC/vicevært) | D24: mange | E24: nogle | F24: få | G24: -
C25: Brugerafhjælpning | D25: ingen | E25: afskærmning | F25: temperatur | G25: -
C28: Forbedringspotentialet | D28: =(30*0.5/80+30*0.25/40+5*0.25/40)*100 -> 40.625 | E28: %

Sheet 11-187
C1: "Tipskupon" for skrivebordsskreening af ejendom
C3: Gennemgang af PKA erhvervsejendomme
C4: Ejendomsnummer | D4: 11-187
C5: Adresse | D5: Tornerosevej 127, 2730 Herlev
C6: DC | D6: Kenneth Johansen
G7: Faktisk
B8: Vægtning | C8: Er der potentiale i at energi- og indeklimaskreene denne ejendom | D8: Point
B9: (%) | D9: 10 | E9: 5 | F9: 0
A10: Basis | B10: 50 | C10: Størrelse (m2) | D10: >10.000 | E10: >5-10.000> | F10: <5.000 | G10: 1656
C11: Bygningsalder (år) | D11: > 30 | E11: > 10-30 > | F11: < 10 | G11: 30
C12: Opvarmningsform | D12: El | E12: gas/olie | F12: Fjernvarme | G12: gas
C13: Antal lejere i bygning | D13: 1 | E13: 2-3 | F13: >3 | G13: 10
C14: Husleje (kr./m2) | D14: <750 | E14: <750-1200< | F14: >1200 | G14: 683
C15: Tomgang (% ikke udlejet) | D15: >25 | E15: 5-25 | F15: <5 | G15: 5.2
C16: D&V budget (gennemsnitlig årlig kr./m2) | D16: >150 | E16: 50-150 | F16: <50 | G16: 144
C17: Restløbetid af lejekontrakt (år) | D17: < 5 | E17: > 5-10 > | F17: > 10 | G17: 1
A18: Energi | B18: 25 | C18: Målt forbrug, varme (kWh/m2) | D18: >200 | E18: >100-200> | F18: <100 | G18: 56
C19: Energimærkestatus | D19: E-H | E19: C-D | F19: A-B | G19: G
C20: Energiomkostninger (kr./m2) | D20: > 150 | E20: > 75-150 > | F20: < 75 | G20: 1593
C21: Faktisk forbrug >< Energimærke (faktor) | D21: >1,3 | E21: 1-1,3 | F21: <1 | G21: 1.6
A22: Indeklima | B22: 25 | C22: Indeklima installationer | D22: naturlig | E22: CAV | F22: klimaanlæg | G22: naturlig
C23: Central styring | D23: intet | E23: PLC | F23: CTS | G23: intet
C24: Indeklimaklager (DC/vicevært) | D24: mange | E24: nogle | F24: få | G24: få
C25: Brugerafhjælpning | D25: ingen | E25: afskærmning | F25: temperatur | G25: ingen
C28: Forbedringspotentialet | D28: =40*50/80+30*25/40+30*25/40 -> 62.5 | E28: %

Sheet 11-215
C1: "Tipskupon" for skrivebordsskreening af ejendom
C3: Gennemgang af PKA erhvervsejendomme
C4: Ejendomsnummer | D4: 11-215
C5: Adresse | D5: Nørre Voldgade 90-92, 1358 København K.
C6: DC | D6: Kenneth Johansen
G7: Faktisk
B8: Vægtning | C8: Er der potentiale i at energi- og indeklimaskreene denne ejendom | D8: Point
B9: (%) | D9: 10 | E9: 5 | F9: 0
A10: Basis | B10: 50 | C10: Størrelse (m2) | D10: >10.000 | E10: >5-10.000> | F10: <5.000 | G10: 7649
C11: Bygningsalder (år) | D11: > 30 | E11: > 10-30 > | F11: < 10 | G11: 141
C12: Opvarmningsform | D12: El | E12: gas/olie | F12: Fjernvarme | G12: fjernvarme
C13: Antal lejere i bygning | D13: 1 | E13: 2-3 | F13: >3 | G13: 26
C14: Husleje (kr./m2) | D14: <750 | E14: <750-1200< | F14: >1200 | G14: 1205
C15: Tomgang (% ikke udlejet) | D15: >25 | E15: 5-25 | F15: <5 | G15: 34
C16: D&V budget (gennemsnitlig årlig kr./m2) | D16: >150 | E16: 50-150 | F16: <50 | G16: 50.1
C17: Restløbetid af lejekontrakt (år) | D17: < 5 | E17: > 5-10 > | F17: > 10 | G17: 0-5
A18: Energi | B18: 25 | C18: Målt forbrug, varme (kWh/m2) | D18: >200 | E18: >100-200> | F18: <100 | G18: 77
C19: Energimærkestatus | D19: E-H | E19: C-D | F19: A-B | G19: E
C20: Energiomkostninger (kr./m2) | D20: > 150 | E20: > 75-150 > | F20: < 75 | G20: 59
C21: Faktisk forbrug >< Energimærke (faktor) | D21: >1,3 | E21: 1-1,3 | F21: <1 | G21: 0.7
A22: Indeklima | B22: 25 | C22: Indeklima installationer | D22: naturlig | E22: CAV | F22: klimaanlæg | G22: naturlig
C23: Central styring | D23: intet | E23: PLC | F23: CTS | G23: intet
C24: Indeklimaklager (DC/vicevært) | D24: mange | E24: nogle | F24: få | G24: nogle
C25: Brugerafhjælpning | D25: ingen | E25: afskærmning | F25: temperatur | G25: afskærmning
C28: Forbedringspotentialet | D28: =40*50/80+10*25/40+30*25/40 -> 50 | E28: %

Sheet 11-160
C1: "Tipskupon" for skrivebordsskreening af ejendom
C3: Gennemgang af PKA erhvervsejendomme
C4: Ejendomsnummer | D4: 11-160
C5: Adresse | D5: Bredevej 2, 2830 Virum
C6: DC | D6: Kenneth Johansen
G7: Faktisk
B8: Vægtning | C8: Er der potentiale i at energi- og indeklimaskreene denne ejendom | D8: Point
B9: (%) | D9: 10 | E9: 5 | F9: 0
A10: Basis | B10: 50 | C10: Størrelse (m2) | D10: >10.000 | E10: >5-10.000> | F10: <5.000 | G10: 17537
C11: Bygningsalder (år) | D11: > 30 | E11: > 10-30 > | F11: < 10 | G11: 32/64
C12: Opvarmningsform | D12: El | E12: gas/olie | F12: Fjernvarme | G12: gas
C13: Antal lejere i bygning | D13: 1 | E13: 2-3 | F13: >3 | G13: 4
C14: Husleje (kr./m2) | D14: <750 | E14: <750-1200< | F14: >1200 | G14: 923
C15: Tomgang (% ikke udlejet) | D15: >25 | E15: 5-25 | F15: <5 | G15: 64
C16: D&V budget (gennemsnitlig årlig kr./m2) | D16: >150 | E16: 50-150 | F16: <50 | G16: 32
C17: Restløbetid af lejekontrakt (år) | D17: < 5 | E17: > 5-10 > | F17: > 10 | G17: 1
A18: Energi | B18: 25 | C18: Målt forbrug, varme (kWh/m2) | D18: >200 | E18: >100-200> | F18: <100 | G18: 95
C19: Energimærkestatus | D19: E-H | E19: C-D | F19: A-B | G19: E
C20: Energiomkostninger (kr./m2) | D20: > 150 | E20: > 75-150 > | F20: < 75 | G20: 182
C21: Faktisk forbrug >< Energimærke (faktor) | D21: >1,3 | E21: 1-1,3 | F21: <1 | G21: 1.1
A22: Indeklima | B22: 25 | C22: Indeklima installationer | D22: naturlig | E22: CAV | F22: klimaanlæg | G22: CAV
C23: Central styring | D23: intet | E23: PLC | F23: CTS | G23: CTS
C24: Indeklimaklager (DC/vicevært) | D24: mange | E24: nogle | F24: få | G24: nogle
C25: Brugerafhjælpning | D25: ingen | E25: afskærmning | F25: temperatur | G25: afskærmning
C28: Forbedringspotentialet | D28: =50*50/80+25*25/40+15*25/40 -> 56.25 | E28: %

Sheet 11-154
C1: "Tipskupon" for skrivebordsskreening af ejendom
C3: Gennemgang af PKA erhvervsejendomme
C4: Ejendomsnummer | D4: 11-154
C5: Adresse | D5: Sophie Brahes Gade 50, 3000 Helsingør
C6: DC | D6: Torben Dalskjær
G7: Faktisk
B8: Vægtning | C8: Er der potentiale i at energi- og indeklimaskreene denne ejendom | D8: Point
B9: (%) | D9: 10 | E9: 5 | F9: 0
A10: Basis | B10: 50 | C10: Størrelse (m2) | D10: >10.000 | E10: >5-10.000> | F10: <5.000 | G10: 2152
C11: Bygningsalder (år) | D11: > 30 | E11: > 10-30 > | F11: < 10 | G11: 139
C12: Opvarmningsform | D12: El | E12: gas/olie | F12: Fjernvarme | G12: fjernvarme
C13: Antal lejere i bygning | D13: 1 | E13: 2-3 | F13: >3 | G13: 7
C14: Husleje (kr./m2) | D14: <750 | E14: <750-1200< | F14: >1200 | G14: 848
C15: Tomgang (% ikke udlejet) | D15: >25 | E15: 5-25 | F15: <5 | G15: 19
C16: D&V budget (gennemsnitlig årlig kr./m2) | D16: >150 | E16: 50-150 | F16: <50 | G16: 83
C17: Restløbetid af lejekontrakt (år) | D17: < 5 | E17: > 5-10 > | F17: > 10 | G17: 1
A18: Energi | B18: 25 | C18: Målt forbrug, varme (kWh/m2) | D18: >200 | E18: >100-200> | F18: <100 | G18: 64
C19: Energimærkestatus | D19: E-H | E19: C-D | F19: A-B | G19: E
C20: Energiomkostninger (kr./m2) | D20: > 150 | E20: > 75-150 > | F20: < 75 | G20: 50
C21: Faktisk forbrug >< Energimærke (faktor) | D21: >1,3 | E21: 1-1,3 | F21: <1 | G21: 1.6
A22: Indeklima | B22: 25 | C22: Indeklima installationer | D22: naturlig | E22: CAV | F22: klimaanlæg | G22: CAV
C23: Central styring | D23: intet | E23: PLC | F23: CTS | G23: PLC
C24: Indeklimaklager (DC/vicevært) | D24: mange | E24: nogle | F24: få | G24: få
C25: Brugerafhjælpning | D25: ingen | E25: afskærmning | F25: temperatur | G25: ingen
C28: Forbedringspotentialet | D28: =35*50/80+20*25/40+20*25/40 -> 46.875 | E28: %

Sheet 11-389
C1: "Tipskupon" for skrivebordsskreening af ejendom
C3: Gennemgang af PKA erhvervsejendomme
C4: Ejendomsnummer | D4: 11-389
C5: Adresse | D5: Vestergade 9B-13, 8600 Silkeborg
C6: DC | D6: Rasmus jensen
G7: Faktisk
B8: Vægtning | C8: Er der potentiale i at energi- og indeklimaskreene denne ejendom | D8: Point
B9: (%) | D9: 10 | E9: 5 | F9: 0
A10: Basis | B10: 50 | C10: Størrelse (m2) | D10: >10.000 | E10: >5-10.000> | F10: <5.000 | G10: 1670
C11: Bygningsalder (år) | D11: > 30 | E11: > 10-30 > | F11: < 10 | G11: 116
C12: Opvarmningsform | D12: El | E12: gas/olie | F12: Fjernvarme | G12: fjernv.
C13: Antal lejere i bygning | D13: 1 | E13: 2-3 | F13: >3 | G13: 1
C14: Husleje (kr./m2) | D14: <750 | E14: <750-1200< | F14: >1200 | G14: 1163
C15: Tomgang (% ikke udlejet) | D15: >25 | E15: 5-25 | F15: <5 | G15: 0
C16: D&V budget (gennemsnitlig årlig kr./m2) | D16: >150 | E16: 50-150 | F16: <50 | G16: 48
C17: Restløbetid af lejekontrakt (år) | D17: < 5 | E17: > 5-10 > | F17: > 10
A18: Energi | B18: 25 | C18: Målt forbrug, varme (kWh/m2) | D18: >200 | E18: >100-200> | F18: <100 | G18: 44.8
C19: Energimærkestatus | D19: E-H | E19: C-D | F19: A-B | G19: E
C20: Energiomkostninger (kr./m2) | D20: > 150 | E20: > 75-150 > | F20: < 75 | G20: 34.4
C21: Faktisk forbrug >< Energimærke (faktor) | D21: >1,3 | E21: 1-1,3 | F21: <1 | G21: 1.9
A22: Indeklima | B22: 25 | C22: Indeklima installationer | D22: naturlig | E22: CAV | F22: klimaanlæg | G22: delvis naturlig, delvis mekanisk
C23: Central styring | D23: intet | E23: PLC | F23: CTS
C24: Indeklimaklager (DC/vicevært) | D24: mange | E24: nogle | F24: få
C25: Brugerafhjælpning | D25: ingen | E25: afskærmning | F25: temperatur
C28: Forbedringspotentialet | D28: =35*50/80+20*25/40+30*25/40 -> 53.125 | E28: %

Sheet 11-391
C1: "Tipskupon" for skrivebordsskreening af ejendom
C3: Gennemgang af PKA erhvervsejendomme
C4: Ejendomsnummer | D4: 11-391
C5: Adresse | D5: Vestergade 1, 8800 Viborg
C6: DC | D6: Rasmus Jensen
G7: Faktisk
B8: Vægtning | C8: Er der potentiale i at energi- og indeklimaskreene denne ejendom | D8: Point
B9: (%) | D9: 10 | E9: 5 | F9: 0
A10: Basis | B10: 50 | C10: Størrelse (m2) | D10: >10.000 | E10: >5-10.000> | F10: <5.000 | G10: 1893
C11: Bygningsalder (år) | D11: > 30 | E11: > 10-30 > | F11: < 10 | G11: 55
C12: Opvarmningsform | D12: El | E12: gas/olie | F12: Fjernvarme | G12: fjernv.
C13: Antal lejere i bygning | D13: 1 | E13: 2-3 | F13: >3 | G13: 3
C14: Husleje (kr./m2) | D14: <750 | E14: <750-1200< | F14: >1200 | G14: 614
C15: Tomgang (% ikke udlejet) | D15: >25 | E15: 5-25 | F15: <5 | G15: 50.2
C16: D&V budget (gennemsnitlig årlig kr./m2) | D16: >150 | E16: 50-150 | F16: <50 | G16: 152.5
C17: Restløbetid af lejekontrakt (år) | D17: < 5 | E17: > 5-10 > | F17: > 10
A18: Energi | B18: 25 | C18: Målt forbrug, varme (kWh/m2) | D18: >200 | E18: >100-200> | F18: <100 | G18: 51.9
C19: Energimærkestatus | D19: E-H | E19: C-D | F19: A-B | G19: E
C20: Energiomkostninger (kr./m2) | D20: > 150 | E20: > 75-150 > | F20: < 75 | G20: 126.9
C21: Faktisk forbrug >< Energimærke (faktor) | D21: >1,3 | E21: 1-1,3 | F21: <1 | G21: 0.9
A22: Indeklima | B22: 25 | C22: Indeklima installationer | D22: naturlig | E22: CAV | F22: klimaanlæg | G22: delvis naturlig og mekanisk
C23: Central styring | D23: intet | E23: PLC | F23: CTS
C24: Indeklimaklager (DC/vicevært) | D24: mange | E24: nogle | F24: få
C25: Brugerafhjælpning | D25: ingen | E25: afskærmning | F25: temperatur
C28: Forbedringspotentialet | D28: =55*50/80+15*25/40+15*25/40 -> 53.125 | E28: %

Sheet 11-196
C1: "Tipskupon" for skrivebordsskreening af ejendom
C3: Gennemgang af PKA erhvervsejendomme
C4: Ejendomsnummer | D4: 11-196
C5: Adresse | D5: Strandparken 48 B, 7900 Nykøbing Mors
C6: DC | D6: Rasmus Jensen
G7: Faktisk
B8: Vægtning | C8: Er der potentiale i at energi- og indeklimaskreene denne ejendom | D8: Point
B9: (%) | D9: 10 | E9: 5 | F9: 0
A10: Basis | B10: 50 | C10: Størrelse (m2) | D10: >10.000 | E10: >5-10.000> | F10: <5.000 | G10: 1596
C11: Bygningsalder (år) | D11: > 30 | E11: > 10-30 > | F11: < 10 | G11: 54
C12: Opvarmningsform | D12: El | E12: gas/olie | F12: Fjernvarme | G12: fjernv.
C13: Antal lejere i bygning | D13: 1 | E13: 2-3 | F13: >3 | G13: 1
C14: Husleje (kr./m2) | D14: <750 | E14: <750-1200< | F14: >1200 | G14: 580
C15: Tomgang (% ikke udlejet) | D15: >25 | E15: 5-25 | F15: <5 | G15: 0
C16: D&V budget (gennemsnitlig årlig kr./m2) | D16: >150 | E16: 50-150 | F16: <50 | G16: 40.2
C17: Restløbetid af lejekontrakt (år) | D17: < 5 | E17: > 5-10 > | F17: > 10
A18: Energi | B18: 25 | C18: Målt forbrug, varme (kWh/m2) | D18: >200 | E18: >100-200> | F18: <100 | G18: -
C19: Energimærkestatus | D19: E-H | E19: C-D | F19: A-B | G19: E
C20: Energiomkostninger (kr./m2) | D20: > 150 | E20: > 75-150 > | F20: < 75 | G20: -
C21: Faktisk forbrug >< Energimærke (faktor) | D21: >1,3 | E21: 1-1,3 | F21: <1 | G21: -
A22: Indeklima | B22: 25 | C22: Indeklima installationer | D22: naturlig | E22: CAV | F22: klimaanlæg | G22: delvis, naturlig, mekanisk og m. køling
C23: Central styring | D23: intet | E23: PLC | F23: CTS | G23: CTS
C24: Indeklimaklager (DC/vicevært) | D24: mange | E24: nogle | F24: få | G24: ingen
C25: Brugerafhjælpning | D25: ingen | E25: afskærmning | F25: temperatur | G25: persienner
C28: Forbedringspotentialet | D28: =40*50/80+10*25/10+5*25/40 -> 53.125 | E28: %
A32: Andet: | B32: Sygehus
C46: Ikke på MinEnergi

Sheet 11-397 (hidden)
A1: "Tipskupon" for skrivebordsskreening af ejendom
A3: Gennemgang af PKA erhvervsejendomme
A4: Ejendomsnummer | B4: 11-397
A5: Adresse | B5: Algade 41-51, 9000 Aalborg
E7: Faktisk
A8: Er der potentiale i at energiskreene denne ejendom | B8: Point
B9: 10 | C9: 5 | D9: 0
A10: Restløbetid af lejekontrakt (år) | B10: < 5 | C10: > 5-10 > | D10: > 10
A11: Energimærkestatus | B11: E-H | C11: C-D | D11: A-B | E11: E
A12: Størrelse (m2) | B12: >10.000 | C12: >5-10.000> | D12: <5.000 | E12: 3566 | M12: SOLGT
A13: Målt forbrug, varme (kWh/m2) | B13: >200 | C13: >100-200> | D13: <100 | E13: 129.2
A14: Faktisk forbrug >< Energimærke (faktor) | B14: >1,3 | C14: 1-1,3 | D14: <1 | E14: 1.1 | H14: 413299
A15: Opvarmningsform | B15: El | C15: gas/olie | D15: Fjernvarme | E15: Fj. | G15: =H15/E13 -> 1.087694209 | H15: =H14/H17 -> 140.5300918 | K15: =228000/0.6 -> 380000
A16: Antal lejere i bygning | B16: 1 | C16: 2-3 | D16: >3 | E16: ? | K16: =K15/H17 -> 129.2077525
A17: Bygningsalder (år) | B17: > 30 | C17: > 10-30 > | D17: < 10 | E17: 54 år | G17: 3566 | H17: 2941
A18: Energiomkostninger (kr./m2) | B18: > 150 | C18: > 75-150 > | D18: < 75
A19: Husleje (kr./m2) | B19: <750 | C19: <750-1200< | D19: >1200 | E19: 1102 | H19: 3930927
H20: =H19/G17 -> 1102.335109
A21: Antal point samlet: | B21: 45 | C21: =B21/80*100 -> 56.25 | D21: %
R29: =248400/23 -> 10800
R30: =26000/7 -> 3714.285714
R31: =R30*5 -> 18571.42857

Sheet 11-468
C1: "Tipskupon" for skrivebordsskreening af ejendom
C3: Gennemgang af PKA erhvervsejendomme
C4: Ejendomsnummer | D4: 11-468
C5: Adresse | D5: Pederstrupvej 93, 2750 Ballerup
C6: DC | D6: Kenneth Johansen
G7: Faktisk
B8: Vægtning | C8: Er der potentiale i at energi- og indeklimaskreene denne ejendom | D8: Point
B9: (%) | D9: 10 | E9: 5 | F9: 0
A10: Basis | B10: 50 | C10: Størrelse (m2) | D10: >10.000 | E10: >5-10.000> | F10: <5.000 | G10: 9555
C11: Bygningsalder (år) | D11: > 30 | E11: > 10-30 > | F11: < 10 | G11: 17
C12: Opvarmningsform | D12: El | E12: gas/olie | F12: Fjernvarme | G12: fjernv.
C13: Antal lejere i bygning | D13: 1 | E13: 2-3 | F13: >3 | G13: 1
C14: Husleje (kr./m2) | D14: <750 | E14: <750-1200< | F14: >1200 | G14: 768.2
C15: Tomgang (% ikke udlejet) | D15: >25 | E15: 5-25 | F15: <5 | G15: 0
C16: D&V budget (gennemsnitlig årlig kr./m2) | D16: >150 | E16: 50-150 | F16: <50 | G16: 19.2
C17: Restløbetid af lejekontrakt (år) | D17: < 5 | E17: > 5-10 > | F17: > 10
A18: Energi | B18: 25 | C18: Målt forbrug, varme (kWh/m2) | D18: >200 | E18: >100-200> | F18: <100 | G18: -
C19: Energimærkestatus | D19: E-H | E19: C-D | F19: A-B | G19: G
C20: Energiomkostninger (kr./m2) | D20: > 150 | E20: > 75-150 > | F20: < 75 | G20: -
C21: Faktisk forbrug >< Energimærke (faktor) | D21: >1,3 | E21: 1-1,3 | F21: <1 | G21: -
A22: Indeklima | B22: 25 | C22: Indeklima installationer | D22: naturlig | E22: CAV | F22: klimaanlæg | G22: mekanisk vent
C23: Central styring | D23: intet | E23: PLC | F23: CTS | G23: CTS
C24: Indeklimaklager (DC/vicevært) | D24: mange | E24: nogle | F24: få
C25: Brugerafhjælpning | D25: ingen | E25: afskærmning | F25: temperatur
C28: Forbedringspotentialet | D28: =35*50/80+10*25/10+0 -> 46.875 | E28: %
A30: Domicilejendom. Styrer selv automatik og indeklima

Sheet 11-481
C1: "Tipskupon" for skrivebordsskreening af ejendom
C3: Gennemgang af PKA erhvervsejendomme
C4: Ejendomsnummer | D4: 11-481
C5: Adresse | D5: Fjordvej 154-155, 6000 Kolding
C6: Bemærkning | D6: Hotel Kolding Fjord
C7: DC | D7: Lars lindegaard olsen
G8: Faktisk
B9: Vægtning | C9: Er der potentiale i at energi- og indeklimaskreene denne ejendom | D9: Point
B10: (%) | D10: 10 | E10: 5 | F10: 0
A11: Basis | B11: 50 | C11: Størrelse (m2) | D11: >10.000 | E11: >5-10.000> | F11: <5.000 | G11: 9216
C12: Bygningsalder (år) | D12: > 30 | E12: > 10-30 > | F12: < 10 | G12: 107
C13: Opvarmningsform | D13: El | E13: gas/olie | F13: Fjernvarme | G13: fjernv.
C14: Antal lejere i bygning | D14: 1 | E14: 2-3 | F14: >3 | G14: 1
C15: Husleje (kr./m2) | D15: <750 | E15: <750-1200< | F15: >1200 | G15: 663.5
C16: Tomgang (% ikke udlejet) | D16: >25 | E16: 5-25 | F16: <5 | G16: 0
C17: D&V budget (gennemsnitlig årlig kr./m2) | D17: >150 | E17: 50-150 | F17: <50 | G17: 262.9
C18: Restløbetid af lejekontrakt (år) | D18: < 5 | E18: > 5-10 > | F18: > 10
A19: Energi | B19: 25 | C19: Målt forbrug, varme (kWh/m2) | D19: >200 | E19: >100-200> | F19: <100 | G19: 111.9
C20: Energimærkestatus | D20: E-H | E20: C-D | F20: A-B | G20: E
C21: Energiomkostninger (kr./m2) | D21: > 150 | E21: > 75-150 > | F21: < 75 | G21: -
C22: Faktisk forbrug >< Energimærke (faktor) | D22: >1,3 | E22: 1-1,3 | F22: <1 | G22: -
A23: Indeklima | B23: 25 | C23: Indeklima installationer | D23: naturlig | E23: CAV | F23: klimaanlæg | G23: naturlig og mekanisk
C24: Central styring | D24: intet | E24: PLC | F24: CTS
C25: Indeklimaklager (DC/vicevært) | D25: mange | E25: nogle | F25: få
C26: Brugerafhjælpning | D26: ingen | E26: afskærmning | F26: temperatur
C29: Forbedringspotentialet | D29: =55*50/80+15*25/40+25*25/40 -> 59.375 | E29: %

Sheet Samlet
A1: Resultater
A3: Ejendomsnummer | B3: Energirenoveringspotentialet, % | C3: Ejd. over 50 % | D3: Ejd. over 60 % | E3: Ejd. over 70 %
A4: 11-220 | B4: 25
A5: 11-382 | B5: 53.1 | C5: 1
A6: 11-362 | B6: 40.6
A7: 11-189 | B7: 62.5 | C7: 1 | D7: 1
A8: 11-215 | B8: 50
A9: 11-160 | B9: 56.3 | C9: 1
A10: 11-154 | B10: 46.9
A11: 11-389 | B11: 53.1 | C11: 1
A12: 11-391 | B12: 53.1 | C12: 1
A13: 11-196 | B13: 53.1 | C13: 1
A14: 11-468 | B14: 46.9
A15: 11-481 | B15: 59.4 | C15: 1
C16: =SUM(C4:C15) -> 7 | D16: =SUM(D4:D15) -> 1 | E16: =SUM(E4:E15) -> 0 | F16: stk.
